[Event "Live Chess"]
[Site "Chess.com"]
[Date "2023.05.20"]
[Round "-"]
[White "djw60"]
[Black "GEMdzq"]
[Result "1/2-1/2"]
[WhiteElo "2122"]
[BlackElo "2229"]
[TimeControl "300"]
[EndTime "11:56:49 PDT"]
[Termination "Game drawn - insufficient material"]

1. Nf3 {[%clk 0:04:58.6]} 1... c5 {[%clk 0:04:57.7]} 2. e3 {[%clk 0:04:55.6]}
2... Nc6 {[%clk 0:04:56.2]} 3. Bb5 {[%clk 0:04:54]} 3... Nf6 {[%clk 0:04:54]} 4.
O-O {[%clk 0:04:51.5]} 4... e6 {[%clk 0:04:48.4]} 5. d4 {[%clk 0:04:48.8]} 5...
Be7 {[%clk 0:04:36]} 6. c4 {[%clk 0:04:40.1]} 6... cxd4 {[%clk 0:04:25.9]} 7.
exd4 {[%clk 0:04:38.4]} 7... d5 {[%clk 0:04:24.6]} 8. cxd5 {[%clk 0:04:31.6]}
8... Nxd5 {[%clk 0:04:22.7]} 9. Ne5 {[%clk 0:04:23.8]} 9... Bd7 {[%clk 0:04:17]}
10. Nxd7 {[%clk 0:04:22.5]} 10... Qxd7 {[%clk 0:04:15.5]} 11. Nc3 {[%clk
0:04:16.3]} 11... O-O {[%clk 0:04:11.8]} 12. Ne4 {[%clk 0:03:53]} 12... Qc7
{[%clk 0:03:44.6]} 13. Bg5 {[%clk 0:03:33.2]} 13... f6 {[%clk 0:03:28.9]} 14.
Be3 {[%clk 0:03:24.9]} 14... Rad8 {[%clk 0:03:15.7]} 15. Rc1 {[%clk 0:03:18.7]}
15... Qb6 {[%clk 0:02:59.9]} 16. Qb3 {[%clk 0:03:09.9]} 16... Nxd4 {[%clk
0:02:47.6]} 17. Bxd4 {[%clk 0:02:59.7]} 17... Qxd4 {[%clk 0:02:47.5]} 18. Rfe1
{[%clk 0:02:52.8]} 18... a6 {[%clk 0:02:07.4]} 19. Bc4 {[%clk 0:02:40.1]} 19...
b5 {[%clk 0:02:03.5]} 20. Bf1 {[%clk 0:02:11.5]} 20... Qb4 {[%clk 0:01:35.3]}
21. Qxb4 {[%clk 0:01:47.5]} 21... Bxb4 {[%clk 0:01:35.2]} 22. Red1 {[%clk
0:01:40.4]} 22... Rc8 {[%clk 0:01:32.4]} 23. a4 {[%clk 0:01:37.6]} 23... bxa4
{[%clk 0:01:12.6]} 24. Bxa6 {[%clk 0:01:35.6]} 24... Rxc1 {[%clk 0:01:09.6]} 25.
Rxc1 {[%clk 0:01:34.2]} 25... Rd8 {[%clk 0:00:52.2]} 26. g3 {[%clk 0:01:28.4]}
26... Bf8 {[%clk 0:00:48.5]} 27. Bb5 {[%clk 0:01:10.2]} 27... a3 {[%clk
0:00:32.3]} 28. bxa3 {[%clk 0:01:08.8]} 28... Bxa3 {[%clk 0:00:32.2]} 29. Rc6
{[%clk 0:00:59.3]} 29... Kf7 {[%clk 0:00:26.6]} 30. Bc4 {[%clk 0:00:54.2]} 30...
Be7 {[%clk 0:00:21.9]} 31. Nc5 {[%clk 0:00:42.7]} 31... Bxc5 {[%clk 0:00:19.4]}
32. Rxc5 {[%clk 0:00:42.6]} 32... Ke7 {[%clk 0:00:18.8]} 33. Bxd5 {[%clk
0:00:39.5]} 33... Rxd5 {[%clk 0:00:18.7]} 34. Rc8 {[%clk 0:00:37.2]} 34... Rd7
{[%clk 0:00:18.5]} 35. Kg2 {[%clk 0:00:35.6]} 35... h6 {[%clk 0:00:18.2]} 36. h4
{[%clk 0:00:34.4]} 36... Kf7 {[%clk 0:00:18.1]} 37. h5 {[%clk 0:00:33.6]} 37...
Rd5 {[%clk 0:00:17.3]} 38. g4 {[%clk 0:00:32.6]} 38... f5 {[%clk 0:00:17.2]} 39.
f3 {[%clk 0:00:31.3]} 39... fxg4 {[%clk 0:00:16.5]} 40. fxg4 {[%clk 0:00:30.5]}
40... Rg5 {[%clk 0:00:16.3]} 41. Kf3 {[%clk 0:00:29.4]} 41... g6 {[%clk
0:00:16.1]} 42. Rc7+ {[%clk 0:00:27.2]} 42... Kf6 {[%clk 0:00:15.4]} 43. hxg6
{[%clk 0:00:25.2]} 43... Kxg6 {[%clk 0:00:15.2]} 44. Kf4 {[%clk 0:00:23.7]}
44... Kf6 {[%clk 0:00:15.1]} 45. Rc6 {[%clk 0:00:22.3]} 45... Kg6 {[%clk
0:00:15]} 46. Rxe6+ {[%clk 0:00:21.1]} 46... Kg7 {[%clk 0:00:12.9]} 47. Re5
{[%clk 0:00:19.6]} 47... Rxe5 {[%clk 0:00:11.5]} 48. Kxe5 {[%clk 0:00:19]} 48...
Kg6 {[%clk 0:00:11.4]} 49. Kf4 {[%clk 0:00:18.3]} 49... h5 {[%clk 0:00:10.1]}
50. gxh5+ {[%clk 0:00:17.6]} 50... Kxh5 {[%clk 0:00:09.3]} 1/2-1/2

[Event "Live Chess"]
[Site "Chess.com"]
[Date "2023.05.20"]
[Round "-"]
[White "Ian-Morley"]
[Black "ACx04"]
[Result "0-1"]
[WhiteElo "978"]
[BlackElo "430"]
[TimeControl "300"]
[EndTime "11:56:49 PDT"]
[Termination "ACx04 won by resignation"]

1. e4 {[%clk 0:04:57]} 1... e5 {[%clk 0:04:57.5]} 2. Nf3 {[%clk 0:04:55.6]} 2...
Nc6 {[%clk 0:04:54.5]} 3. Bc4 {[%clk 0:04:54.3]} 3... h6 {[%clk 0:04:52.8]} 4.
d4 {[%clk 0:04:52.6]} 4... exd4 {[%clk 0:04:51.4]} 5. Nxd4 {[%clk 0:04:51.8]}
5... Nf6 {[%clk 0:04:50.5]} 6. Nxc6 {[%clk 0:04:50.8]} 6... dxc6 {[%clk
0:04:49.4]} 7. Nc3 {[%clk 0:04:47.8]} 7... Qxd1+ {[%clk 0:04:47.7]} 8. Nxd1
{[%clk 0:04:46.9]} 8... Nxe4 {[%clk 0:04:46.7]} 9. O-O {[%clk 0:04:41.1]} 9...
Be6 {[%clk 0:04:45]} 10. Re1 {[%clk 0:04:40.1]} 10... Bxc4 {[%clk 0:04:43.8]}
11. Rxe4+ {[%clk 0:04:39.2]} 11... Be6 {[%clk 0:04:42.1]} 12. Bf4 {[%clk
0:04:36.8]} 12... Bd6 {[%clk 0:04:40]} 13. Bxd6 {[%clk 0:04:35.4]} 13... cxd6
{[%clk 0:04:39]} 14. Ne3 {[%clk 0:04:34.8]} 14... O-O {[%clk 0:04:37.7]} 15. c3
{[%clk 0:04:33.1]} 15... Bd5 {[%clk 0:04:36.6]} 16. Nxd5 {[%clk 0:04:31.3]}
16... cxd5 {[%clk 0:04:35.4]} 17. Rd4 {[%clk 0:04:30.8]} 17... Rae8 {[%clk
0:04:27.6]} 18. Rxd5 {[%clk 0:04:29.3]} 18... f5 {[%clk 0:04:26]} 19. Rxd6
{[%clk 0:04:27.7]} 19... f4 {[%clk 0:04:24.8]} 20. f3 {[%clk 0:04:22.2]} 20...
Re5 {[%clk 0:04:21.5]} 21. Rad1 {[%clk 0:04:20.1]} 21... Rfe8 {[%clk 0:04:20.2]}
22. Rd8 {[%clk 0:04:15]} 22... Rxd8 {[%clk 0:04:18.6]} 23. Rxd8+ {[%clk
0:04:13.6]} 23... Kh7 {[%clk 0:04:18]} 24. Rd7 {[%clk 0:04:12.7]} 24... Re1+
{[%clk 0:04:16.7]} 25. Kf2 {[%clk 0:04:11.4]} 25... Ra1 {[%clk 0:04:15.1]} 26.
Rxb7 {[%clk 0:04:10.4]} 26... Rxa2 {[%clk 0:04:14.1]} 27. c4 {[%clk 0:04:09.9]}
27... Rxb2+ {[%clk 0:04:12.9]} 28. Ke1 {[%clk 0:04:09.3]} 28... Rxb7 {[%clk
0:04:11.7]} 0-1

[Event "Live Chess"]
[Site "Chess.com"]
[Date "2023.05.20"]
[Round "-"]
[White "WelshTiger"]
[Black "Doge_Dandolo"]
[Result "1-0"]
[WhiteElo "2399"]
[BlackElo "2082"]
[TimeControl "300"]
[EndTime "11:56:59 PDT"]
[Termination "WelshTiger won by resignation"]

1. e4 {[%clk 0:04:58.9]} 1... c6 {[%clk 0:04:58.7]} 2. d4 {[%clk 0:04:56.4]}
2... d5 {[%clk 0:04:57.8]} 3. f3 {[%clk 0:04:53.5]} 3... dxe4 {[%clk 0:04:56.4]}
4. fxe4 {[%clk 0:04:53.4]} 4... e5 {[%clk 0:04:55.1]} 5. Nf3 {[%clk 0:04:52.6]}
5... Bg4 {[%clk 0:04:54.1]} 6. Bc4 {[%clk 0:04:51.2]} 6... Nf6 {[%clk
0:04:52.9]} 7. Bxf7+ {[%clk 0:04:48.2]} 7... Kxf7 {[%clk 0:04:51.3]} 8. Nxe5+
{[%clk 0:04:47.5]} 8... Kg8 {[%clk 0:04:49.3]} 9. Nxg4 {[%clk 0:04:47.4]} 9...
Nbd7 {[%clk 0:04:43.8]} 10. Nc3 {[%clk 0:04:44.5]} 10... Nxg4 {[%clk 0:04:42.3]}
11. Qxg4 {[%clk 0:04:42.3]} 11... Qe7 {[%clk 0:04:38.1]} 12. e5 {[%clk
0:04:41.2]} 12... h5 {[%clk 0:04:34.6]} 13. Qg5 {[%clk 0:04:37.4]} 13... Qf7
{[%clk 0:04:30.7]} 14. Rf1 {[%clk 0:04:34.3]} 14... Qe8 {[%clk 0:04:28.5]} 15.
Be3 {[%clk 0:04:27.7]} 15... Be7 {[%clk 0:04:27.3]} 16. Qf5 {[%clk 0:04:27.1]}
16... Qf8 {[%clk 0:04:19.5]} 17. Qe6+ {[%clk 0:04:24.8]} 17... Kh7 {[%clk
0:04:15.7]} 18. Rxf8 {[%clk 0:04:14.2]} 1-0

[Event "Live Chess"]
[Site "Chess.com"]
[Date "2023.05.20"]
[Round "-"]
[White "BostonStrangler"]
[Black "1600x"]
[Result "1-0"]
[WhiteElo "2049"]
[BlackElo "1669"]
[TimeControl "300"]
[EndTime "11:57:01 PDT"]
[Termination "BostonStrangler won by checkmate"]

1. Nf3 {[%clk 0:04:58.2]} 1... e5 {[%clk 0:04:56]} 2. Nxe5 {[%clk 0:04:56.8]}
2... Bd6 {[%clk 0:04:52.3]} 3. Nf3 {[%clk 0:04:55.3]} 3... Bf4 {[%clk
0:04:49.8]} 4. d4 {[%clk 0:04:53.6]} 4... Qe7 {[%clk 0:04:49.4]} 5. Bxf4 {[%clk
0:04:52]} 5... Nf6 {[%clk 0:04:49]} 6. Nc3 {[%clk 0:04:49.6]} 6... d5 {[%clk
0:04:40]} 7. e3 {[%clk 0:04:43.1]} 7... O-O {[%clk 0:04:38.3]} 8. Bd3 {[%clk
0:04:42.1]} 8... Qb4 {[%clk 0:04:36.7]} 9. Rb1 {[%clk 0:04:39.7]} 9... Ne4
{[%clk 0:04:35.7]} 10. Bxe4 {[%clk 0:04:37.7]} 10... Re8 {[%clk 0:04:35.2]} 11.
Bxd5 {[%clk 0:04:33.2]} 11... Qb6 {[%clk 0:04:35.1]} 12. O-O {[%clk 0:04:31.4]}
12... Rf8 {[%clk 0:04:33.7]} 13. Ng5 {[%clk 0:04:27.9]} 13... Be6 {[%clk
0:04:32.6]} 14. Bxe6 {[%clk 0:04:24.3]} 14... fxe6 {[%clk 0:04:31.6]} 15. Qg4
{[%clk 0:04:23.9]} 15... Re8 {[%clk 0:04:28.9]} 16. Be5 {[%clk 0:04:19.8]} 16...
g6 {[%clk 0:04:27.6]} 17. Nce4 {[%clk 0:04:16.1]} 17... Nd7 {[%clk 0:04:25.9]}
18. Nxh7 {[%clk 0:04:08.8]} 18... Nxe5 {[%clk 0:04:24]} 19. dxe5 {[%clk
0:04:07.1]} 19... Kxh7 {[%clk 0:04:22.6]} 20. Qh4+ {[%clk 0:04:01.1]} 20... Kg7
{[%clk 0:04:00.9]} 21. Qf6+ {[%clk 0:03:58.2]} 21... Kh7 {[%clk 0:03:58.8]} 22.
Ng5+ {[%clk 0:03:55.4]} 22... Kh6 {[%clk 0:03:31.8]} 23. Nf7+ {[%clk 0:03:50.2]}
23... Kh5 {[%clk 0:03:28.2]} 24. Qg5# {[%clk 0:03:48.3]} 1-0

[Event "Live Chess"]
[Site "Chess.com"]
[Date "2023.05.20"]
[Round "-"]
[White "wot-not"]
[Black "bristolunichess"]
[Result "1-0"]
[WhiteElo "1482"]
[BlackElo "1776"]
[TimeControl "300"]
[EndTime "11:57:07 PDT"]
[Termination "wot-not won on time"]

1. e4 {[%clk 0:04:56.8]} 1... c6 {[%clk 0:04:57.6]} 2. f4 {[%clk 0:04:55.8]}
2... d5 {[%clk 0:04:57.2]} 3. e5 {[%clk 0:04:55]} 3... c5 {[%clk 0:04:56.8]} 4.
Nf3 {[%clk 0:04:54.6]} 4... Nc6 {[%clk 0:04:56.1]} 5. d4 {[%clk 0:04:54.4]} 5...
cxd4 {[%clk 0:04:55.2]} 6. Bd3 {[%clk 0:04:54.1]} 6... Bg4 {[%clk 0:04:53]} 7.
O-O {[%clk 0:04:53.6]} 7... e6 {[%clk 0:04:47.5]} 8. Nbd2 {[%clk 0:04:52.9]}
8... Bc5 {[%clk 0:04:21.7]} 9. Nb3 {[%clk 0:04:51.2]} 9... Bb6 {[%clk
0:04:21.1]} 10. Bd2 {[%clk 0:04:50.2]} 10... Nge7 {[%clk 0:04:18.1]} 11. Be1
{[%clk 0:04:46.8]} 11... Qd7 {[%clk 0:03:53.4]} 12. h3 {[%clk 0:04:42.8]} 12...
Bxf3 {[%clk 0:03:51.9]} 13. Qxf3 {[%clk 0:04:39.4]} 13... g6 {[%clk 0:03:49.3]}
14. Kh1 {[%clk 0:04:34.9]} 14... h5 {[%clk 0:03:48]} 15. Bh4 {[%clk 0:04:32.8]}
15... Nf5 {[%clk 0:03:46.6]} 16. Bxf5 {[%clk 0:04:31.3]} 16... gxf5 {[%clk
0:03:42.3]} 17. Bf6 {[%clk 0:04:30]} 17... Rh7 {[%clk 0:03:37]} 18. a4 {[%clk
0:04:17.7]} 18... a6 {[%clk 0:03:33.3]} 19. a5 {[%clk 0:04:15.6]} 19... Ba7
{[%clk 0:03:33]} 20. Qg3 {[%clk 0:03:52.5]} 20... Ne7 {[%clk 0:03:22.6]} 21.
Rfd1 {[%clk 0:03:43.1]} 21... Rc8 {[%clk 0:03:01.5]} 22. Rac1 {[%clk 0:03:38.2]}
22... Rc4 {[%clk 0:02:22.5]} 23. Nd2 {[%clk 0:03:27.5]} 23... Ra4 {[%clk
0:02:21.7]} 24. Nf3 {[%clk 0:03:26.5]} 24... Ng6 {[%clk 0:01:50.8]} 25. Ra1
{[%clk 0:03:06.1]} 25... Rxa1 {[%clk 0:01:46.1]} 26. Rxa1 {[%clk 0:03:04.9]}
26... Qb5 {[%clk 0:01:41.3]} 27. b3 {[%clk 0:02:53]} 27... Qe2 {[%clk 0:01:20]}
28. Ng5 {[%clk 0:02:12.8]} 28... Rh6 {[%clk 0:01:19.2]} 29. Nxe6 {[%clk
0:01:53.1]} 29... fxe6 {[%clk 0:01:13.9]} 30. Qg5 {[%clk 0:01:51.9]} 30... Nxf4
{[%clk 0:00:49.5]} 31. Qxf4 {[%clk 0:01:30.4]} 31... Rg6 {[%clk 0:00:48.5]} 32.
Bg5 {[%clk 0:01:16.5]} 32... Qxc2 {[%clk 0:00:38.4]} 33. h4 {[%clk 0:01:03.2]}
33... Qxb3 {[%clk 0:00:29.6]} 34. Rc1 {[%clk 0:00:57]} 34... Kd7 {[%clk
0:00:26.3]} 35. Qf3 {[%clk 0:00:45.7]} 35... Qxf3 {[%clk 0:00:24.8]} 36. gxf3
{[%clk 0:00:45]} 36... Rg8 {[%clk 0:00:19.6]} 37. Rb1 {[%clk 0:00:44]} 37... Kc8
{[%clk 0:00:12]} 38. Rc1+ {[%clk 0:00:42.2]} 38... Kb8 {[%clk 0:00:11.4]} 39.
Be7 {[%clk 0:00:38.8]} 39... Ka8 {[%clk 0:00:07.6]} 40. Rc7 {[%clk 0:00:36]}
40... d3 {[%clk 0:00:06.6]} 41. Bg5 {[%clk 0:00:31.2]} 41... Bb8 {[%clk
0:00:02.4]} 42. Rc3 {[%clk 0:00:26.8]} 42... Re8 {[%clk 0:00:01.2]} 43. Rxd3
{[%clk 0:00:25.9]} 43... Bxe5 {[%clk 0:00:00.7]} 44. Rb3 {[%clk 0:00:23.3]}
44... Bc7 {[%clk 0:00:00.6]} 45. Rc3 {[%clk 0:00:22.1]} 45... Kb8 {[%clk
0:00:00.5]} 46. f4 {[%clk 0:00:19.5]} 1-0

[Event "Live Chess"]
[Site "Chess.com"]
[Date "2023.05.20"]
[Round "-"]
[White "Supertromp"]
[Black "gmnorfolk"]
[Result "1-0"]
[WhiteElo "2201"]
[BlackElo "2074"]
[TimeControl "300"]
[EndTime "11:57:18 PDT"]
[Termination "Supertromp won by resignation"]

1. e4 {[%clk 0:04:58.7]} 1... e5 {[%clk 0:04:58.4]} 2. Nf3 {[%clk 0:04:57.7]}
2... Nc6 {[%clk 0:04:56.1]} 3. Bc4 {[%clk 0:04:57.3]} 3... Nf6 {[%clk
0:04:54.4]} 4. d3 {[%clk 0:04:56.1]} 4... Bc5 {[%clk 0:04:49.4]} 5. O-O {[%clk
0:04:55.1]} 5... O-O {[%clk 0:04:48.8]} 6. c3 {[%clk 0:04:53.6]} 6... d5 {[%clk
0:04:48.1]} 7. exd5 {[%clk 0:04:48.3]} 7... Nxd5 {[%clk 0:04:48]} 8. Re1 {[%clk
0:04:42.8]} 8... Bg4 {[%clk 0:04:42.8]} 9. Nbd2 {[%clk 0:04:41.7]} 9... Nb6
{[%clk 0:04:40.9]} 10. Bb5 {[%clk 0:04:31.4]} 10... f6 {[%clk 0:04:30.2]} 11.
Bxc6 {[%clk 0:04:27.8]} 11... bxc6 {[%clk 0:04:28.5]} 12. Ne4 {[%clk 0:04:25.9]}
12... Be7 {[%clk 0:04:25.6]} 13. h3 {[%clk 0:04:20.7]} 13... Bh5 {[%clk
0:04:23.2]} 14. Ng3 {[%clk 0:04:20.1]} 14... Bg6 {[%clk 0:04:20.9]} 15. Nh4
{[%clk 0:04:18.6]} 15... Bxd3 {[%clk 0:04:18.3]} 16. Qg4 {[%clk 0:04:06.1]}
16... Kh8 {[%clk 0:04:07.5]} 17. Rd1 {[%clk 0:03:56.1]} 17... g5 {[%clk
0:03:29.4]} 18. Nhf5 {[%clk 0:03:30]} 18... Bxf5 {[%clk 0:03:24.4]} 19. Nxf5
{[%clk 0:03:29.9]} 19... Qe8 {[%clk 0:03:19.9]} 20. b3 {[%clk 0:03:01.1]} 20...
Nd5 {[%clk 0:03:13.3]} 21. Bb2 {[%clk 0:02:58.8]} 21... Nf4 {[%clk 0:03:09.2]}
22. c4 {[%clk 0:02:51]} 22... Bc5 {[%clk 0:02:53.3]} 23. Qf3 {[%clk 0:02:16.4]}
23... e4 {[%clk 0:02:43.2]} 24. Qg4 {[%clk 0:02:11.1]} 24... Qg6 {[%clk
0:02:17]} 25. Nd4 {[%clk 0:01:36.5]} 25... Rad8 {[%clk 0:01:37.1]} 26. Ne6
{[%clk 0:01:34.9]} 26... Rxd1+ {[%clk 0:01:26.8]} 27. Rxd1 {[%clk 0:01:33]}
27... Nxe6 {[%clk 0:01:12]} 28. Qxe6 {[%clk 0:01:32.9]} 28... e3 {[%clk
0:01:08.7]} 29. fxe3 {[%clk 0:01:31.8]} 29... Bd6 {[%clk 0:01:02.1]} 30. e4
{[%clk 0:01:11.5]} 30... Bf4 {[%clk 0:00:51.7]} 31. Rd7 {[%clk 0:01:08]} 31...
g4 {[%clk 0:00:45.3]} 32. Rd8 {[%clk 0:00:58]} 32... Be3+ {[%clk 0:00:24.7]} 33.
Kh1 {[%clk 0:00:51.9]} 33... Kg7 {[%clk 0:00:12.7]} 34. Rxf8 {[%clk 0:00:25.5]}
34... gxh3 {[%clk 0:00:11.2]} 35. Rg8+ {[%clk 0:00:22.1]} 35... Kh6 {[%clk
0:00:10.5]} 36. Qxh3+ {[%clk 0:00:21.7]} 36... Qh5 {[%clk 0:00:08.8]} 37. Qxh5+
{[%clk 0:00:21]} 37... Kxh5 {[%clk 0:00:08.7]} 38. Rg7 {[%clk 0:00:19.3]} 1-0

[Event "Live Chess"]
[Site "Chess.com"]
[Date "2023.05.20"]
[Round "-"]
[White "Chesscoach_Golichenko"]
[Black "rideuv21"]
[Result "1-0"]
[WhiteElo "2660"]
[BlackElo "1835"]
[TimeControl "300"]
[EndTime "11:57:19 PDT"]
[Termination "Chesscoach_Golichenko won by resignation"]

1. d4 {[%clk 0:04:56.5]} 1... c5 {[%clk 0:04:59.9]} 2. d5 {[%clk 0:04:55.1]}
2... Nf6 {[%clk 0:04:58.3]} 3. Nc3 {[%clk 0:04:52.7]} 3... g6 {[%clk 0:04:44.4]}
4. e4 {[%clk 0:04:44.5]} 4... d6 {[%clk 0:04:42.6]} 5. Be2 {[%clk 0:04:40.7]}
5... Bg7 {[%clk 0:04:38]} 6. Nf3 {[%clk 0:04:38.2]} 6... O-O {[%clk 0:04:35]} 7.
O-O {[%clk 0:04:36.5]} 7... Nbd7 {[%clk 0:04:29]} 8. h3 {[%clk 0:04:34.2]} 8...
a6 {[%clk 0:04:16.6]} 9. a4 {[%clk 0:04:31.6]} 9... b6 {[%clk 0:04:14.1]} 10.
Nd2 {[%clk 0:04:24.2]} 10... Bb7 {[%clk 0:04:08.6]} 11. f4 {[%clk 0:04:20.8]}
11... e6 {[%clk 0:04:03.8]} 12. Nc4 {[%clk 0:04:18.8]} 12... exd5 {[%clk
0:03:49]} 13. Nxd6 {[%clk 0:04:01]} 13... Qc7 {[%clk 0:03:46.3]} 14. e5 {[%clk
0:03:53.5]} 14... Ne4 {[%clk 0:03:43.6]} 15. Nxd5 {[%clk 0:03:46.8]} 15... Bxd5
{[%clk 0:03:41.3]} 16. Qxd5 {[%clk 0:03:46.7]} 16... Nxd6 {[%clk 0:03:40.2]} 17.
exd6 {[%clk 0:03:45.5]} 17... Qd8 {[%clk 0:03:37.9]} 18. Bf3 {[%clk 0:03:44.3]}
18... Rb8 {[%clk 0:03:35.1]} 19. c3 {[%clk 0:03:34.2]} 19... Nf6 {[%clk
0:03:32.7]} 20. Qd3 {[%clk 0:03:31.7]} 20... b5 {[%clk 0:03:30.6]} 21. axb5
{[%clk 0:03:30]} 21... axb5 {[%clk 0:03:30.5]} 22. f5 {[%clk 0:03:29.1]} 22...
Rb6 {[%clk 0:03:27.9]} 23. Bf4 {[%clk 0:03:26.7]} 23... Nd7 {[%clk 0:03:21.2]}
24. Ra8 {[%clk 0:03:23.1]} 24... Qf6 {[%clk 0:03:15.9]} 25. Rxf8+ {[%clk
0:03:19.7]} 25... Bxf8 {[%clk 0:03:15.8]} 26. Rd1 {[%clk 0:03:03]} 26... b4
{[%clk 0:02:34.9]} 27. Bg4 {[%clk 0:02:23.7]} 27... g5 {[%clk 0:02:26.9]} 28.
Bg3 {[%clk 0:02:19.3]} 28... bxc3 {[%clk 0:02:15.5]} 29. Qxc3 {[%clk 0:02:17.8]}
29... Qxc3 {[%clk 0:02:03.2]} 30. bxc3 {[%clk 0:02:17.7]} 30... f6 {[%clk
0:02:02.5]} 31. Bf3 {[%clk 0:02:12.9]} 31... Kf7 {[%clk 0:01:55.5]} 32. Bd5+
{[%clk 0:02:11.1]} 32... Ke8 {[%clk 0:01:54.6]} 33. Be6 {[%clk 0:02:04.4]} 33...
Ne5 {[%clk 0:01:33.9]} 34. d7+ {[%clk 0:02:02.4]} 34... Kd8 {[%clk 0:01:31]} 35.
h4 {[%clk 0:01:50.9]} 35... h6 {[%clk 0:01:24.7]} 36. hxg5 {[%clk 0:01:47.4]}
36... hxg5 {[%clk 0:01:24.6]} 37. Ra1 {[%clk 0:01:44.3]} 37... Bd6 {[%clk
0:01:23]} 38. Kf1 {[%clk 0:01:30.8]} 38... Nxd7 {[%clk 0:00:59.2]} 39. Bf2
{[%clk 0:00:57.1]} 39... Nf8 {[%clk 0:00:30.5]} 40. Ra8+ {[%clk 0:00:47.1]}
40... Rb8 {[%clk 0:00:30]} 41. Rxb8+ {[%clk 0:00:43.8]} 41... Bxb8 {[%clk
0:00:29.9]} 42. Bxc5 {[%clk 0:00:42.6]} 42... Nxe6 {[%clk 0:00:29]} 43. fxe6
{[%clk 0:00:42.5]} 43... Be5 {[%clk 0:00:22.8]} 44. c4 {[%clk 0:00:40.4]} 44...
f5 {[%clk 0:00:21.4]} 45. Ke2 {[%clk 0:00:38.9]} 45... Bf6 {[%clk 0:00:20.9]}
46. Bd6 {[%clk 0:00:36.9]} 46... Be7 {[%clk 0:00:20]} 47. c5 {[%clk 0:00:36.2]}
47... Ke8 {[%clk 0:00:15.8]} 48. Kd3 {[%clk 0:00:33.2]} 48... f4 {[%clk
0:00:14.8]} 49. Ke4 {[%clk 0:00:32.4]} 49... Bd8 {[%clk 0:00:09.3]} 50. c6
{[%clk 0:00:28.9]} 50... g4 {[%clk 0:00:04.3]} 51. Kxf4 {[%clk 0:00:24]} 1-0

[Event "Live Chess"]
[Site "Chess.com"]
[Date "2023.05.20"]
[Round "-"]
[White "Horseymobile"]
[Black "ClassyChameleon"]
[Result "1-0"]
[WhiteElo "1193"]
[BlackElo "1057"]
[TimeControl "300"]
[EndTime "11:57:24 PDT"]
[Termination "Horseymobile won by checkmate"]

1. d4 {[%clk 0:04:59.6]} 1... d5 {[%clk 0:04:58.1]} 2. c4 {[%clk 0:04:59]} 2...
e6 {[%clk 0:04:56.1]} 3. Nc3 {[%clk 0:04:58.1]} 3... c6 {[%clk 0:04:52.5]} 4.
Nf3 {[%clk 0:04:56.7]} 4... Bb4 {[%clk 0:04:50.1]} 5. e3 {[%clk 0:04:53]} 5...
b5 {[%clk 0:04:46.8]} 6. cxb5 {[%clk 0:04:46.4]} 6... c5 {[%clk 0:04:45]} 7.
dxc5 {[%clk 0:04:36.8]} 7... Qa5 {[%clk 0:04:41.8]} 8. Qc2 {[%clk 0:04:29.8]}
8... Bxc5 {[%clk 0:04:37.1]} 9. Bd2 {[%clk 0:04:21.1]} 9... Nf6 {[%clk 0:04:27]}
10. Bd3 {[%clk 0:04:07.9]} 10... O-O {[%clk 0:04:22.5]} 11. O-O {[%clk
0:04:04.4]} 11... Nbd7 {[%clk 0:04:13.3]} 12. Nxd5 {[%clk 0:03:33.1]} 12... Qd8
{[%clk 0:03:57.9]} 13. Nxf6+ {[%clk 0:03:25.4]} 13... Qxf6 {[%clk 0:03:55.3]}
14. Bxh7+ {[%clk 0:03:24]} 14... Kh8 {[%clk 0:03:52.2]} 15. Bc3 {[%clk
0:03:23.5]} 15... e5 {[%clk 0:03:42.9]} 16. Be4 {[%clk 0:03:19.4]} 16... Rb8
{[%clk 0:03:36.6]} 17. Rad1 {[%clk 0:03:11.9]} 17... Rxb5 {[%clk 0:03:31]} 18.
Bc6 {[%clk 0:03:07.1]} 18... Qxc6 {[%clk 0:03:18.1]} 19. Bxe5 {[%clk 0:03:04.2]}
19... Nxe5 {[%clk 0:03:10.6]} 20. Nxe5 {[%clk 0:03:03.9]} 20... Qf6 {[%clk
0:03:04]} 21. Rd5 {[%clk 0:02:58.1]} 21... Qe7 {[%clk 0:02:34]} 22. Nc6 {[%clk
0:02:14]} 22... Qb7 {[%clk 0:01:45.8]} 23. Rh5+ {[%clk 0:02:06]} 23... Kg8
{[%clk 0:01:36.4]} 24. Qh7# {[%clk 0:02:05.3]} 1-0